Cogmind - Beta 13 @@@ ROGUE MODE // 2024.04.04 @ 21:31:49 Player: Reiko Result: Destroyed by G-47 Trooper with Particle Gun Performance ------------- Evolutions (2) 1000 Regions Visited (4) 800 Robots Destroyed (40) 200 Value Destroyed (878) 878 Prototype IDs (0) 0 Alien Tech Used (0) 0 Bonus (32) 32 TOTAL SCORE: 2910 Bonus ------- High Alert Combat Kills 32 Cogmind --------- Core Integrity 0/550 Matter 65/450 Energy 98/100 System Corruption 0% Temperature Cool (9) Movement Core (50) Location -8/Materials Parts ------- > --- POWER (3) -------- (None) > --- PROPULSION (3) --- (None) > --- UTILITY (3) ------ Large Matter Pod Targeting Computer > --- WEAPON (2) ------- (None) > --- INVENTORY (5) ---- (None) Peak State ------------ > --- POWER ------------ Ion Engine > --- PROPULSION ------- Aluminum Leg Aluminum Leg Carbon-fiber Leg > --- UTILITY ---------- Large Matter Pod Improved Terrain Scanner Targeting Computer > --- WEAPON ----------- Lightning Gun Mini Grenade Launcher > --- INVENTORY -------- Aluminum Leg Medium Laser Welding Torch [Rating: 17] Favorites ----------- Power Light Ion Engine Engine Light Ion Engine Propulsion Aluminum Leg Leg Aluminum Leg Utility Targeting Computer Device Improved Terrain Scanner Storage Large Matter Pod Processor Targeting Computer Weapon EM Pulse Gun Energy Gun EM Pulse Gun Launcher Rocket Launcher Special Weapon Welding Torch Build | -11 -10 -10 -9 -8 ------- Run | Yrd Mat Min Mat Mat Slots Evolved 4 | . . . 2 2 Power 2 | . . . 1 1 Propulsion 1 | . . . . 1 Utility 1 | . . . 1 . Weapon . | . . . . . Parts Attached 26 | 7 7 1 2 9 Power 4 | 1 1 . 1 1 Engine 4 | 1 1 . 1 1 Core . | . . . . . Reactor . | . . . . . Propulsion 6 | 2 2 . . 2 Treads . | . . . . . Leg 6 | 2 2 . . 2 Wheel . | . . . . . Hover . | . . . . . Flight . | . . . . . Utility 5 | 2 2 . . 1 Device 3 | 2 1 . . . Storage 1 | . . . . 1 Processor 1 | . 1 . . . Hackware . | . . . . . Protection . | . . . . . Artifact . | . . . . . Weapon 11 | 2 2 1 1 5 Energy Gun 7 | 2 2 . . 3 Energy Cannon . | . . . . . Ballistic Gun . | . . . . . Ballistic Cannon . | . . . . . Launcher 3 | . . 1 1 1 Special Weapon 1 | . . . . 1 Impact Weapon . | . . . . . Slashing Weapon . | . . . . . Piercing Weapon . | . . . . . Special Melee Weapon . | . . . . . Unidentified Prototypes . | . . . . . Parts Lost 14 | . . . 3 11 Power 2 | . . . 1 1 Propulsion 4 | . . . . 4 Utility 1 | . . . . 1 Weapon 7 | . . . 2 5 Highest Loss Streak 9 | . . . 1 9 To Critical Strikes . | . . . . . Average Slot Usage (%) 82 | . 90 100 81 63 Engine 11 | . 9 14 16 6 Leg 23 | . 27 28 22 18 Device 11 | . 14 14 11 7 Storage 1 | . . . . 8 Processor 10 | . 10 14 11 9 Energy Gun 12 | . 27 14 3 6 Launcher 9 | . . 13 17 6 Naked Turns . | . . . . . Heaviest Build 14 | 9 9 10 14 14 Greatest Support 35 | 20 20 20 20 35 Greatest Overweight (x) 2 | . . . . 2 Average Overweight (x) . | . . . . . Largest Inventory Capacity 5 | 5 5 5 5 5 Average Capacity 5 | 5 5 5 5 5 Most Carried 5 | 2 5 4 5 4 Average Carried 2 | . 2 3 3 2 Final Capacity 5 | 5 5 5 5 5 Final Carried 4 | 1 3 4 3 . Class Distribution -------------------- 83% | Mutant 16% | Scavenger-Mutant Dominant Class ---------------- Mutant | -10/Materials Mutant | -10/Mines Scavenger-Mutant | -9/Materials Mutant | -8/Materials Resources | -11 -10 -10 -9 -8 ----------- Run | Yrd Mat Min Mat Mat Matter Collected 466 | 270 48 14 110 24 Remotely . | . . . . . Salvage Created 916 | 96 224 14 351 231 Parts 69 | 9 12 3 36 9 Haulers Intercepted 1 | . . . 1 . Recyclers Shooed 1 | . . . 1 . Parts Field Recycled . | . . . . . Retrieved Matter . | . . . . . Parts Self-Destructed . | . . . . . Prevented . | . . . . . Kills | -11 -10 -10 -9 -8 ------- Run | Yrd Mat Min Mat Mat Combat Hostiles Destroyed 28 | 1 4 3 16 4 Guns 8 | 1 4 1 1 1 AOE 19 | . . 2 15 2 Classes Destroyed 9 | 3 3 . 3 . Worker 1 | 1 . . . . Builder 3 | . 2 . . 1 Tunneler 1 | 1 . . . . Hauler 1 | . . . 1 . Recycler 3 | . 1 . 1 1 Watcher 3 | . . . 3 . Swarmer 14 | . 3 3 8 . Grunt 12 | 1 1 . 7 3 Sentry 2 | . . . 1 1 Best Kill Streak 8 | 2 3 3 8 5 Combat Bots Only 6 | 1 3 3 6 4 Max Kills in Single Turn 3 | 1 2 2 3 2 Gunslinging . | . . . . . Exploded 2 | . . 2 2 2 Melee . | . . . . . Uniques/NPCs Destroyed . | . . . . . Combat | -11 -10 -10 -9 -8 -------- Run | Yrd Mat Min Mat Mat Hostile Shots Fired 152 | 4 23 3 24 98 Missed 45 | 1 7 1 9 27 Damage Taken 1636 | 33 133 14 279 1177 Core 614 | . 12 . 52 550 Absorbed by Shields . | . . . . . Regen/Repaired (Parts) 40 | . . . . 40 Core Remaining (%) 94 | 100 . 95 87 . Volleys Fired 76 | 6 19 2 20 29 Largest 2 | 2 2 2 2 1 Hottest 90 | 90 90 73 73 55 Shots Fired 112 | 12 38 3 30 29 Gun 72 | 12 38 2 3 17 Cannon . | . . . . . Launcher 33 | . . 1 27 5 Special 7 | . . . . 7 Kinetic . | . . . . . Thermal 34 | 6 19 . . 9 Explosive 32 | . . 1 27 4 Electromagnetic 46 | 6 19 2 3 16 Robot Hit Streak 10 | 2 6 2 2 10 Robot Miss Streak 10 | 2 3 1 10 3 Penetration Max . | . . . . . Secondary Targets . | . . . . . Shots Hit Robots 56 | 5 18 2 9 22 Core Hits 66 | 4 10 3 29 20 Critical Kills . | . . . . . Critical Parts Destroyed . | . . . . . Critical Strikes 4 | . 3 . . 1 Burn 4 | . 3 . . 1 Melee Attacks . | . . . . . Impact . | . . . . . Slashing . | . . . . . Piercing . | . . . . . Sneak Attacks . | . . . . . Combat Hostiles . | . . . . . Follow-up Attacks . | . . . . . Damage Inflicted 2701 | 69 238 74 1432 888 Guns 582 | 69 238 10 12 253 Cannons . | . . . . . Explosions 2081 | . . 64 1408 609 Melee . | . . . . . Ramming 26 | . . . 12 14 Kinetic . | . . . . . Thermal 215 | 13 165 . . 37 Explosive 2020 | . . 64 1408 548 Electromagnetic 440 | 56 73 10 12 289 Impact . | . . . . . Slashing . | . . . . . Piercing . | . . . . . Highest Corruption 2 | . 2 2 1 . Average Corruption 1 | . 2 2 1 . Corruption Purged . | . . . . . Corruption Blocked . | . . . . . Effects 9 | . 5 3 1 . Matter Fused 3 | . 1 2 . . Energy Discharges 3 | . 1 1 1 . Data Loss (minor) 3 | . 3 . . . Overload Shots . | . . . . . Overflow Damage 54 | . . . 48 6 Projectiles . | . . . . . Explosions 54 | . . . 48 6 Melee . | . . . . . Knockbacks . | . . . . . Impact . | . . . . . Kinetic . | . . . . . Secondary . | . . . . . Self-Inflicted Damage 89 | . . . 64 25 Shots 5 | . . . 4 1 Rammed 4 | . . . . 4 Targets Rammed 14 | . . . 3 11 Kicked 10 | . . . 3 7 Crushed . | . . . . . Highest Temperature 132 | 86 132 12 24 75 Average Temperature 37 | 42 51 8 8 32 Received Heat Transfer 774 | 18 12 . 60 684 Siege Activations . | . . . . . Robots Corrupted 1 | . . . . 1 Combat Hostiles 1 | . . . . 1 Parts Fried 2 | . . . . 2 Impact Corruptions . | . . . . . Robots Melted . | . . . . . Combat Hostiles . | . . . . . Parts Melted 1 | . 1 . . . Heat Transferred 988 | 37 703 . . 248 Parts Sabotaged . | . . . . . Parts Stolen . | . . . . . Parts Stripped . | . . . . . Power Chain Reactions . | . . . . . Alert | -11 -10 -10 -9 -8 ------- Run | Yrd Mat Min Mat Mat Peak Influence 676 | 30 168 82 676 344 Initial 234 | . 19 3 31 234 Average 172 | 7 79 11 304 258 Maximum Alert Level 2 | . . . 2 1 Low Security (%) 63 | 100 100 100 47 . Level 1 21 | . . . 4 100 Level 2 14 | . . . 47 . Level 3 . | . . . . . Level 4 . | . . . . . Level 5 . | . . . . . High Security . | . . . . . Max Security . | . . . . . Squads Dispatched 5 | . 1 . 2 2 Investigation 3 | . . . 2 1 Extermination . | . . . . . Reinforcement 2 | . 1 . . 1 Assault . | . . . . . Garrison . | . . . . . Intercept . | . . . . . Searches Triggered . | . . . . . Construction Impeded . | . . . . . Haulers Reinforced . | . . . . . Active Scanning Responses . | . . . . . Cargo Convoy Interrupts . | . . . . . Stealth | -11 -10 -10 -9 -8 --------- Run | Yrd Mat Min Mat Mat Distress Signals . | . . . . . Communications Jammed . | . . . . . Distress Signals . | . . . . . Times Spotted 45 | 1 6 3 19 16 Peak Tracking Total 8 | 1 3 3 4 8 Tactical Retreats 2 | . . . . 2 Traps | -11 -10 -10 -9 -8 ------- Run | Yrd Mat Min Mat Mat Traps Triggered 5 | . 3 . 2 . Indirectly . | . . . . . Trap Hack Attempts . | . . . . . Triggered . | . . . . . Disarmed . | . . . . . Reprogrammed . | . . . . . Reused . | . . . . . Traps Extracted . | . . . . . Installed . | . . . . . Triggered . | . . . . . Machines | -11 -10 -10 -9 -8 ---------- Run | Yrd Mat Min Mat Mat Machines Disabled 11 | . . . 11 . Max in Single Turn 4 | . . . 4 . Machines Repaired . | . . . . . Machines Dismantled . | . . . . . Machines Sabotaged . | . . . . . Overloaded Fab Kills . | . . . . . Hacking | -11 -10 -10 -9 -8 --------- Run | Yrd Mat Min Mat Mat Machines Accessed 8 | . 3 . 3 2 Terminals 6 | . 2 . 3 1 Fabricators . | . . . . . Repair Stations 1 | . . . . 1 Recycling Units 1 | . 1 . . . Scanalyzers . | . . . . . Garrison Access . | . . . . . Total Hacks 36 | . 17 . 11 8 Successful 21 | . 10 . 7 4 Failed 15 | . 7 . 4 4 Catastrophic 3 | . 1 . 2 . Database Lockouts . | . . . . . Manual . | . . . . . Terminals 29 | . 13 . 11 5 Fabricators . | . . . . . Repair Stations 3 | . . . . 3 Recycling Units 4 | . 4 . . . Scanalyzers . | . . . . . Garrison Access . | . . . . . Terminal Hacks 16 | . 7 . 7 2 Record 10 | . 2 . 6 2 Locate Traps 1 | . . . 1 . Dispatch Records 1 | . 1 . . . Maintenance Status 1 | . 1 . . . Transport Status 1 | . 1 . . . Hauler Manifests 1 | . 1 . . . Zone Layout 1 | . 1 . . . Fabricator Hacks . | . . . . . Repair Station Hacks 2 | . . . . 2 Scan Component 1 | . . . . 1 Repair 1 | . . . . 1 Recycling Unit Hacks 3 | . 3 . . . Process 1 | . 1 . . . Report Inventory 1 | . 1 . . . Retrieve Matter 1 | . 1 . . . Scanalyzer . | . . . . . Garrison Access Hacks . | . . . . . Unauthorized Hacks . | . . . . . Terminals . | . . . . . Fabricators . | . . . . . Repair Stations . | . . . . . Recycling Units . | . . . . . Scanalyzers . | . . . . . Garrison Access . | . . . . . Data Cores Recovered . | . . . . . Used . | . . . . . Hacking Detections 6 | . 2 . 3 1 Full Trace Events 5 | . 1 . 3 1 Feedback Events 1 | . . . 1 . Corruption 1 | . . . 1 . Feedback Blocked . | . . . . . Robot Schematics Acquired . | . . . . . Robots Built . | . . . . . Authchips . | . . . . . Time . | . . . . . Total Robot Build Rating . | . . . . . Part Schematics Acquired . | . . . . . Parts Built . | . . . . . Authchips . | . . . . . Time . | . . . . . Total Part Build Rating . | . . . . . Parts Repaired 1 | . . . . 1 Time 26 | . . . . 26 Parts Recycled . | . . . . . Recycled Matter 3 | . 3 . . . Retrieved Matter 3 | . 3 . . . Retrieved Components . | . . . . . Parts Scanalyzed . | . . . . . Part Schematics Acquired . | . . . . . Parts Damaged . | . . . . . Bothacking | -11 -10 -10 -9 -8 ------------ Run | Yrd Mat Min Mat Mat Used RIF Installer . | . . . . . Robots Hacked . | . . . . . Non-combat . | . . . . . Combat . | . . . . . Robot Hacks Applied . | . . . . . Relay Couplers Released . | . . . . . Fabnet Peak Effective % . | . . . . . Robots Rewired . | . . . . . Allies Hacked . | . . . . . Hacks Repelled . | . . . . . Allies | -11 -10 -10 -9 -8 -------- Run | Yrd Mat Min Mat Mat Total Allies . | . . . . . Largest Group . | . . . . . Highest-Rated Group . | . . . . . Highest-Rated Ally . | . . . . . Total Orders . | . . . . . Ally Attacks . | . . . . . Total Damage . | . . . . . Kills . | . . . . . Allies Corrupted . | . . . . . Allies Melted . | . . . . . Intel | -11 -10 -10 -9 -8 ------- Run | Yrd Mat Min Mat Mat Robot Analysis Total . | . . . . . Derelict Logs Recovered 1 | . . 1 . . Drone Launches . | . . . . . Drone Recoveries . | . . . . . Exploration | -11 -10 -10 -9 -8 ------------- Run | Yrd Mat Min Mat Mat Turns Passed 1573 | 131 463 170 498 311 Spaces Moved 1106 | 97 323 132 367 187 Core 64 | 25 3 . . 36 Treads . | . . . . . Legs 1042 | 72 320 132 367 151 Wheels . | . . . . . Hover . | . . . . . Flight . | . . . . . Fastest Speed 50 | 50 50 120 120 50 Average Speed 116 | 101 119 120 120 110 Slowest Speed 150 | 120 120 120 120 150 Overloaded Moves . | . . . . . Propulsion Burnouts . | . . . . . Robots Hopped . | . . . . . Cave-ins Triggered . | . . . . . Exploration Rate (%) 29 | 7 44 37 40 18 Regions Visited 4 Branch Regions 1 Pre-discovered Areas . | . . . . . Known Exits Taken 1 | . . . 1 . Unknown Exits Taken 3 | 1 1 1 . . Scrap Searched . | . . . . . Spaces Dug . | . . . . . Terrain Destroyed 197 | . . 10 162 25 Melee . | . . . . . Projectile . | . . . . . AOE 197 | . . 10 162 25 Terrain Rammed . | . . . . . Walls Destroyed . | . . . . . Machines Disabled . | . . . . . Actions | -11 -10 -10 -9 -8 --------- Run | Yrd Mat Min Mat Mat Total 1274 | 117 363 140 394 260 Wait 29 | . 5 5 . 19 Move 1102 | 96 322 131 366 187 Hop . | . . . . . Pick Up 24 | 8 8 1 2 5 Fast Attach . | . . . . . Attach 23 | 7 6 . 2 8 Detach 1 | . 1 . . . Swap 3 | . 1 1 . 1 Drop 2 | . 1 . 1 . Fire 76 | 6 19 2 20 29 Melee . | . . . . . Ram 4 | . . . . 4 Kick 10 | . . . 3 7 Crush . | . . . . . Escape Stasis . | . . . . . Rewire . | . . . . . Trap . | . . . . . Miscellaneous . | . . . . . Route ------- -11/Scrapyard -10/Materials (discovered 2 exits: *Mat / [*Min]) -10/Mines -9/Materials (discovered 2 exits: *Mat x2) -8/Materials History --------- Turn | Location | Event 2 | -11/Scrapyard | Met Revision 17 87 | -11/Scrapyard | Discovered new exit (range 8) 132 | -11/Scrapyard | Entered Materials 309 | -10/Materials | Build established: Mutant 449 | -10/Materials | Discovered new exit (range 4) 538 | -10/Materials | Discovered new exit (range 13) 595 | -10/Materials | Entered Mines 602 | -10/Mines | Received a Rocket Launcher from a helpful Derelict 662 | -10/Mines | Learned location of 1 exit from Materials 748 | -10/Mines | Discovered new exit (range 11) 765 | -10/Mines | Entered Materials 765 | -9/Materials | Evolved 2 slots: Power x1, Utility x1 766 | -9/Materials | Identified exit to Materials 1153 | -9/Materials | Discovered exit to Materials (range 16) 1263 | -9/Materials | Entered another Materials area 1263 | -8/Materials | Evolved 2 slots: Power x1, Propulsion x1 1365 | -8/Materials | Repaired Ion Engine 1521 | -8/Materials | Core integrity fell below 50% 1548 | -8/Materials | Lost 9 parts (1p3n1u4w) 1564 | -8/Materials | Core integrity fell below 20% 1574 | -8/Materials | Destroyed by G-47 Trooper with Particle Gun Last Messages --------------- U-05 Engineer lays Concrete. T-07 Excavator is excavating. U-05 Engineer lays Concrete. Acquired 24 matter. U-05 Engineer builds a Wall. Ion Engine destroyed. [Achievement: Let's See Who's Tougher] U-05 Engineer destroyed. EMP Blaster destroyed. The unstable cave ceiling collapses. R-06 Scavenger collects Corrupted Wheel. R-06 Scavenger collects Terrain Scan Processor. Welding Torch destroyed. Kicked G-47 Trooper. Kicked G-47 Trooper out of the way. Kicked G-47 Trooper. Aluminum Leg destroyed. Slammed into G-47 Trooper. Destabilizing: Core damaged (-16). Slammed into G-47 Trooper. Map ----- +----------------------------------------------------+ | | | | | | | | | | | #?????????????????????????????????????????????? | | ???????#??#???????????????????????????????????? | | #?????????????????????????????????????????????? | | ????????#?????????????????????????????????????? | | ?#????????????????????????????????????????????? | | ?????##???????????????????????????????????????? | | ????##?#??????????????????????????????????????? | | ??????????????????????????????????????????????? | | ????#?????????????????????????????????????????? | | ####??????????????????????????????????????????? | | #??????????#????????????????????????????????? | | ""######??????????????????????????????????????? | | T"#! #????????#?????????????????????????????? | | ""# #????????#######???????????????????????? | | # #????#???# ########????????????????? | | " # #?#??????# """g# """ #????????????????? | | " ##?????#?# """ g """ #????????????????? | | " ]]]########?# """ #gg""" #????????????????? | | ]]] #!!!!### # #????????????????? | | # ]] #! !## ! ! # #????????????????? | | # ## # @ #????????????????? | | #! # ####+######+###????????????????? | | %! ???????????? | | # % ???????????? | | # ???????????? | | # % # ###########+########## ????????????? | | # ####?????????????????????????????????????? | | # #????????????????????????????????????????? | | +????????????????????????????????????????? | | # #????????????????????????????????????????? | | ## #??????#?????????????????????????????????? | | ?# #????????????????????????????????????????? | | ? ????????????????????????????????????????? | | ? ????????????????????????????????????????? | | ????????????????????????????????????????? | | ????????????????????????????????????????? | | # ???????????????????????????????????????? | | ?#####????????????????????????????????????????? | | ??????????????????????????????????????????????? | | ??????????????????????????????????????????????? | | ??????????????????????????????????????????????? | | ??????????????????????????????????????????????? | | ??????????????????????????????????????????????? | | ??????????????????????????????????????????????? | | ??????????????????????????????????????????????? | +----------------------------------------------------+ Best States ------------- Heat Dissipation 31 Energy Generation 15 Energy Capacity 275 Matter Stores 300 Matter Capacity 450 Sight Range 16 Terrain Scan Range 16 Terrain Scan Density 10 Evasion (%) 55 Targeting Accuracy 5 Item Schematics ----------------- None Robot Schematics ------------------ None Fabricated ------------ Nothing Alien Tech Used ----------------- None Achievements -------------- Let's See Who's Tougher Librarian Part-time Mechanic Power Corrupts Shopping List Challenges ------------ None Game ------ Seed GlidesysParticleAccelerator Manual? 0 Play Time 00:28:24 Cumulative 1.4 hours Start 2024.04.04 @ 21:00:36 End 2024.04.04 @ 21:31:49 Sessions 1 Manual Loads 0 Difficulty Rogue Special Mode None Game No. 2 Rogue 2 Adventurer 0 Explorer 0 Win Type - Total 0 Types 0/0/0/0/0/0/0/0/0 Lore% 1 Gallery% 3 Achievement% 5 Wizard Run 0 Options --------- Layout 1 ASCII 0 Keyboard 0 Movement Arrows Keybinds 0 Fullscreen 2 Font 32/SmallcapsGlow Map View 50x35 Zoom Use 0% Tactical HUD 0 Map Filters NONE Filters NONE Steam 1 RUN: 72649308-4bac-4770-8707-37a23287d9a6